[Event "Titled Tuesday Blitz June 21 Late 2022"]
[White "Winkels, Marcel"]
[Black "Sanchez Alarcon, Juan"]
[WhiteFideId "1003887"]
[BlackFideId "3401332"]
[WhiteElo "1900"]
[BlackElo "2164"]
[Result "0-1"]
[Round "10"]
[TimeControl "180+1"]
[Date "2022.06.22"]
[WhiteClock "0:00:48"]
[BlackClock "0:01:20"]

1. e4 {[%clk 0:03:00]}  c5 {[%clk 0:02:58]} 2. Nc3 {[%clk 0:02:58]}  Nc6 {[%clk 0:02:56]} 3. f4 {[%clk 0:02:58]}  e6 {[%clk 0:02:52]} 4. Nf3 {[%clk 0:02:59]}  d5 {[%clk 0:02:52]} 5. d3 {[%clk 0:02:55]}  Nf6 {[%clk 0:02:50]} 6. Be2 {[%clk 0:02:54]}  Be7 {[%clk 0:02:47]} 7. O-O {[%clk 0:02:53]}  dxe4 {[%clk 0:02:41]} 8. dxe4 {[%clk 0:02:51]}  Qxd1 {[%clk 0:02:39]} 9. Rxd1 {[%clk 0:02:50]}  O-O {[%clk 0:02:38]} 10. e5 {[%clk 0:02:48]}  Nd7 {[%clk 0:02:36]} 11. a4 {[%clk 0:02:44]}  b6 {[%clk 0:02:32]} 12. Nb5 {[%clk 0:02:43]}  Rd8 {[%clk 0:02:27]} 13. Be3 {[%clk 0:02:41]}  Bb7 {[%clk 0:02:26]} 14. Nd6 {[%clk 0:02:36]}  Bxd6 {[%clk 0:02:23]} 15. Rxd6 {[%clk 0:02:37]}  Nf8 {[%clk 0:02:22]} 16. Rad1 {[%clk 0:02:35]}  Rxd6 {[%clk 0:02:23]} 17. Rxd6 {[%clk 0:02:34]}  Rd8 {[%clk 0:02:23]} 18. Rxd8 {[%clk 0:02:18]}  Nxd8 {[%clk 0:02:22]} 19. c3 {[%clk 0:02:18]}  Ng6 {[%clk 0:02:19]} 20. g3 {[%clk 0:02:15]}  Ne7 {[%clk 0:02:19]} 21. Nd2 {[%clk 0:02:14]}  Bd5 {[%clk 0:02:10]} 22. Nc4 {[%clk 0:02:13]}  Bxc4 {[%clk 0:02:10]} 23. Bxc4 {[%clk 0:02:13]}  Ndc6 {[%clk 0:02:10]} 24. Bb5 {[%clk 0:02:11]}  Kf8 {[%clk 0:02:10]} 25. Kf2 {[%clk 0:02:10]}  Ke8 {[%clk 0:02:09]} 26. Ke2 {[%clk 0:02:10]}  Kd8 {[%clk 0:02:09]} 27. Kd3 {[%clk 0:02:09]}  Kc7 {[%clk 0:02:09]} 28. Bd2 {[%clk 0:02:01]}  Nd5 {[%clk 0:02:09]} 29. Bxc6 {[%clk 0:01:46]}  Kxc6 {[%clk 0:02:08]} 30. b4 {[%clk 0:01:47]}  a6 {[%clk 0:02:01]} 31. bxc5 {[%clk 0:01:44]}  Kxc5 {[%clk 0:02:00]} 32. Bc1 {[%clk 0:01:42]}  b5 {[%clk 0:01:59]} 33. Ba3+ {[%clk 0:01:41]}  Kc6 {[%clk 0:01:58]} 34. axb5+ {[%clk 0:01:38]}  axb5 {[%clk 0:01:58]} 35. Bf8 {[%clk 0:01:38]}  g6 {[%clk 0:01:57]} 36. Ba3 {[%clk 0:01:35]}  Nb6 {[%clk 0:01:55]} 37. Kd4 {[%clk 0:01:33]}  Nc4 {[%clk 0:01:55]} 38. Bb4 {[%clk 0:01:32]}  Nd2 {[%clk 0:01:54]} 39. Ke3 {[%clk 0:01:30]}  Nc4+ {[%clk 0:01:52]} 40. Ke4 {[%clk 0:01:27]}  Nd2+ {[%clk 0:01:51]} 41. Kd3 {[%clk 0:01:22]}  Nf1 {[%clk 0:01:49]} 42. g4 {[%clk 0:01:14]}  Nxh2 {[%clk 0:01:46]} 43. g5 {[%clk 0:01:14]}  Nf3 {[%clk 0:01:45]} 44. Ke4 {[%clk 0:01:14]}  Nh4 {[%clk 0:01:44]} 45. Ba5 {[%clk 0:01:13]}  Nf5 {[%clk 0:01:44]} 46. Bb4 {[%clk 0:01:12]}  h5 {[%clk 0:01:41]} 47. gxh6 {[%clk 0:01:11]}  Nxh6 {[%clk 0:01:41]} 48. Ba3 {[%clk 0:01:09]}  Nf5 {[%clk 0:01:40]} 49. Bc1 {[%clk 0:01:08]}  Kc5 {[%clk 0:01:39]} 50. Kd3 {[%clk 0:01:05]}  Kd5 {[%clk 0:01:39]} 51. Bd2 {[%clk 0:01:05]}  Ng3 {[%clk 0:01:38]} 52. Bc1 {[%clk 0:01:03]}  Ne4 {[%clk 0:01:38]} 53. Ba3 {[%clk 0:01:00]}  Nf2+ {[%clk 0:01:31]} 54. Ke3 {[%clk 0:00:58]}  Ne4 {[%clk 0:01:28]} 55. Kd3 {[%clk 0:00:57]}  Nc5+ {[%clk 0:01:27]} 56. Kd2 {[%clk 0:00:54]}  Kc4 {[%clk 0:01:22]} 57. Bb4 {[%clk 0:00:50]}  Ne4+ {[%clk 0:01:22]} 58. Kc2 {[%clk 0:00:50]}  Nf2 {[%clk 0:01:22]} 59. Kd2 {[%clk 0:00:48]}  Nd3 {[%clk 0:01:21]} 60. Ke3 {[%clk 0:00:47]}  Nxb4 {[%clk 0:01:21]} 61. cxb4 {[%clk 0:00:46]}  Kxb4 {[%clk 0:01:21]} 62. Kd4 {[%clk 0:00:47]}  Ka3 {[%clk 0:01:21]} 63. Kc5 {[%clk 0:00:46]}  b4 {[%clk 0:01:21]} 64. Kd6 {[%clk 0:00:47]}  b3 {[%clk 0:01:21]} 65. Ke7 {[%clk 0:00:48]}  b2 {[%clk 0:01:21]} 66. Kxf7 {[%clk 0:00:49]}  b1=Q {[%clk 0:01:21]} 67. Kxe6 {[%clk 0:00:50]}  Qf5+ {[%clk 0:01:21]} 68. Kd6 {[%clk 0:00:49]}  Qxf4 {[%clk 0:01:22]} 69. Kd5 {[%clk 0:00:48]}  g5 {[%clk 0:01:20]} 70. e6 {[%clk 0:00:49]}  Qf8 {[%clk 0:01:19]} 71. Ke5 {[%clk 0:00:48]}  Qe7 {[%clk 0:01:19]} 72. Kf5 {[%clk 0:00:48]}  Kb4 {[%clk 0:01:20]} 0-1


[Site "https://www.chess.com"]

[Event "Titled Tuesday Blitz June 21 Late 2022"]
[White "Xiong, Jeffery"]
[Black "Tari, Aryan"]
[WhiteFideId "2047640"]
[BlackFideId "1510045"]
[WhiteElo "2714"]
[BlackElo "2567"]
[Result "0-1"]
[Round "10"]
[TimeControl "180+1"]
[Date "2022.06.21"]
[WhiteClock "0:00:09"]
[BlackClock "0:00:11"]

1. d4 {[%clk 0:02:28]}  d5 {[%clk 0:02:54]} 2. c4 {[%clk 0:02:28]}  e6 {[%clk 0:02:54]} 3. Nc3 {[%clk 0:02:26]}  c5 {[%clk 0:02:55]} 4. dxc5 {[%clk 0:02:21]}  d4 {[%clk 0:02:31]} 5. Na4 {[%clk 0:02:21]}  Nc6 {[%clk 0:02:26]} 6. e3 {[%clk 0:02:18]}  e5 {[%clk 0:02:14]} 7. Nf3 {[%clk 0:02:17]}  Nf6 {[%clk 0:01:56]} 8. exd4 {[%clk 0:02:17]}  e4 {[%clk 0:01:44]} 9. d5 {[%clk 0:02:16]}  exf3 {[%clk 0:01:44]} 10. dxc6 {[%clk 0:02:16]}  Qxd1+ {[%clk 0:01:32]} 11. Kxd1 {[%clk 0:02:17]}  Bg4 {[%clk 0:01:31]} 12. Kc2 {[%clk 0:02:11]}  bxc6 {[%clk 0:01:29]} 13. gxf3 {[%clk 0:02:11]}  Bxf3 {[%clk 0:01:29]} 14. Rg1 {[%clk 0:02:11]}  O-O-O {[%clk 0:01:26]} 15. Bf4 {[%clk 0:02:08]}  Ne4 {[%clk 0:01:23]} 16. Re1 {[%clk 0:01:45]}  g6 {[%clk 0:01:12]} 17. Bh3+ {[%clk 0:01:27]}  Kb7 {[%clk 0:01:12]} 18. Re3 {[%clk 0:01:28]}  Rd2+ {[%clk 0:01:10]} 19. Kc1 {[%clk 0:01:27]}  Rxf2 {[%clk 0:01:07]} 20. Rb3+ {[%clk 0:01:27]}  Ka6 {[%clk 0:01:05]} 21. Be3 {[%clk 0:00:51]}  Re2 {[%clk 0:00:58]} 22. Rf1 {[%clk 0:00:51]}  Bh5 {[%clk 0:00:44]} 23. Ra3 {[%clk 0:00:33]}  Rxe3 {[%clk 0:00:33]} 24. Nc3+ {[%clk 0:00:33]}  Kb7 {[%clk 0:00:34]} 25. Rxf7+ {[%clk 0:00:33]}  Kb8 {[%clk 0:00:34]} 26. Raxa7 {[%clk 0:00:31]}  Nxc5 {[%clk 0:00:26]} 27. Bg2 {[%clk 0:00:26]}  Bh6 {[%clk 0:00:25]} 28. Kc2 {[%clk 0:00:26]}  g5 {[%clk 0:00:21]} 29. Bxc6 {[%clk 0:00:23]}  Bxf7 {[%clk 0:00:20]} 30. Rxf7 {[%clk 0:00:23]}  Rf8 {[%clk 0:00:17]} 31. Rxh7 {[%clk 0:00:23]}  Rf2+ {[%clk 0:00:16]} 32. Kd1 {[%clk 0:00:23]}  Nd3 {[%clk 0:00:16]} 33. Rh8+ {[%clk 0:00:18]}  Ka7 {[%clk 0:00:15]} 34. Ra8+ {[%clk 0:00:06]}  Kb6 {[%clk 0:00:15]} 35. Nd5+ {[%clk 0:00:07]}  Kxc6 {[%clk 0:00:15]} 36. Nxe3 {[%clk 0:00:08]}  Nxb2+ {[%clk 0:00:11]} 37. Ke1 {[%clk 0:00:08]}  Nd3+ {[%clk 0:00:12]} 38. Kd1 {[%clk 0:00:09]}  g4 {[%clk 0:00:10]} 39. Ra6+ {[%clk 0:00:08]}  Kc5 {[%clk 0:00:09]} 40. Rxh6 {[%clk 0:00:09]}  Nb2+ {[%clk 0:00:10]} 41. Ke1 {[%clk 0:00:08]}  Nd3+ {[%clk 0:00:10]} 42. Kd1 {[%clk 0:00:09]}  Nb2+ {[%clk 0:00:11]} 43. Kc1 {[%clk 0:00:09]}  Nd3+ {[%clk 0:00:11]} 44. Kb1 {[%clk 0:00:10]}  Rb2+ {[%clk 0:00:11]} 45. Ka1 {[%clk 0:00:10]}  Re2 {[%clk 0:00:12]} 46. Rh5+ {[%clk 0:00:10]}  Kd4 {[%clk 0:00:11]} 47. Nf5+ {[%clk 0:00:09]}  Kc3 {[%clk 0:00:11]} 0-1


[Site "https://www.chess.com"]

[Event "Titled Tuesday Blitz June 21 Late 2022"]
[White "Yoo, Christopher Woojin"]
[Black "Rustemov, Alexander"]
[WhiteFideId "30909694"]
[BlackFideId "4119002"]
[WhiteElo "2105"]
[BlackElo "2737"]
[Result "1/2-1/2"]
[Round "10"]
[TimeControl "180+1"]
[Date "2022.06.21"]
[WhiteClock "0:00:02"]
[BlackClock "0:00:16"]

1. d4 {[%clk 0:03:00]}  d5 {[%clk 0:02:57]} 2. c4 {[%clk 0:03:01]}  dxc4 {[%clk 0:02:57]} 3. Nf3 {[%clk 0:03:00]}  Nf6 {[%clk 0:02:57]} 4. Qa4+ {[%clk 0:02:59]}  c6 {[%clk 0:02:53]} 5. Qxc4 {[%clk 0:02:59]}  b5 {[%clk 0:02:53]} 6. Qc2 {[%clk 0:02:59]}  Bb7 {[%clk 0:02:54]} 7. e4 {[%clk 0:02:54]}  e6 {[%clk 0:02:52]} 8. e5 {[%clk 0:02:52]}  Nd5 {[%clk 0:02:52]} 9. Nc3 {[%clk 0:02:53]}  Be7 {[%clk 0:02:43]} 10. Nxd5 {[%clk 0:02:50]}  Qxd5 {[%clk 0:02:41]} 11. Bd3 {[%clk 0:02:51]}  Na6 {[%clk 0:02:25]} 12. a3 {[%clk 0:02:26]}  h6 {[%clk 0:02:23]} 13. O-O {[%clk 0:02:16]}  Qd7 {[%clk 0:02:22]} 14. Be3 {[%clk 0:02:03]}  Nc7 {[%clk 0:02:18]} 15. Nd2 {[%clk 0:01:54]}  Nd5 {[%clk 0:02:18]} 16. Ne4 {[%clk 0:01:53]}  a5 {[%clk 0:02:17]} 17. Qd2 {[%clk 0:01:41]}  b4 {[%clk 0:02:16]} 18. Rfc1 {[%clk 0:01:33]}  Ba6 {[%clk 0:02:14]} 19. Bxa6 {[%clk 0:01:25]}  Rxa6 {[%clk 0:02:13]} 20. axb4 {[%clk 0:01:25]}  Bxb4 {[%clk 0:02:12]} 21. Qd3 {[%clk 0:01:24]}  Ra7 {[%clk 0:02:01]} 22. Bd2 {[%clk 0:01:02]}  O-O {[%clk 0:01:47]} 23. Bxb4 {[%clk 0:00:48]}  axb4 {[%clk 0:01:43]} 24. Nc5 {[%clk 0:00:42]}  Qc7 {[%clk 0:01:39]} 25. Rxa7 {[%clk 0:00:42]}  Qxa7 {[%clk 0:01:39]} 26. Qa6 {[%clk 0:00:42]}  Qe7 {[%clk 0:01:09]} 27. Ne4 {[%clk 0:00:40]}  Qh4 {[%clk 0:01:06]} 28. Qe2 {[%clk 0:00:40]}  Ra8 {[%clk 0:01:03]} 29. h3 {[%clk 0:00:22]}  Ne7 {[%clk 0:01:01]} 30. Rd1 {[%clk 0:00:19]}  Nf5 {[%clk 0:00:57]} 31. Kh2 {[%clk 0:00:19]}  Rd8 {[%clk 0:00:54]} 32. g3 {[%clk 0:00:18]}  Qe7 {[%clk 0:00:53]} 33. Qc4 {[%clk 0:00:19]}  Qa7 {[%clk 0:00:46]} 34. Nc5 {[%clk 0:00:16]}  Qb6 {[%clk 0:00:35]} 35. Nxe6 {[%clk 0:00:14]}  Rd5 {[%clk 0:00:29]} 36. Nc5 {[%clk 0:00:15]}  Nxd4 {[%clk 0:00:28]} 37. Rxd4 {[%clk 0:00:10]}  Qxc5 {[%clk 0:00:26]} 38. Qxc5 {[%clk 0:00:04]}  Rxc5 {[%clk 0:00:27]} 39. e6 {[%clk 0:00:04]}  fxe6 {[%clk 0:00:26]} 40. Rxb4 {[%clk 0:00:05]}  Rc2 {[%clk 0:00:25]} 41. Kg2 {[%clk 0:00:06]}  Kf7 {[%clk 0:00:26]} 42. Rb7+ {[%clk 0:00:03]}  Kf6 {[%clk 0:00:25]} 43. b4 {[%clk 0:00:04]}  c5 {[%clk 0:00:25]} 44. Rc7 {[%clk 0:00:04]}  c4 {[%clk 0:00:24]} 45. h4 {[%clk 0:00:04]}  c3 {[%clk 0:00:24]} 46. g4 {[%clk 0:00:04]}  Rb2 {[%clk 0:00:24]} 47. Rxc3 {[%clk 0:00:04]}  Rxb4 {[%clk 0:00:24]} 48. Kg3 {[%clk 0:00:05]}  g5 {[%clk 0:00:21]} 49. h5 {[%clk 0:00:05]}  Ra4 {[%clk 0:00:20]} 50. Rc7 {[%clk 0:00:05]}  Ra3+ {[%clk 0:00:19]} 51. f3 {[%clk 0:00:05]}  e5 {[%clk 0:00:19]} 52. Rc6+ {[%clk 0:00:02]}  Kf7 {[%clk 0:00:19]} 53. Rxh6 {[%clk 0:00:02]}  e4 {[%clk 0:00:19]} 54. Rg6 {[%clk 0:00:02]}  Rxf3+ {[%clk 0:00:17]} 55. Kg2 {[%clk 0:00:03]}  Rf4 {[%clk 0:00:15]} 56. Rxg5 {[%clk 0:00:03]}  Kf6 {[%clk 0:00:15]} 57. Rg8 {[%clk 0:00:03]}  Kf7 {[%clk 0:00:15]} 58. Rg5 {[%clk 0:00:03]}  Kf6 {[%clk 0:00:14]} 59. Rg6+ {[%clk 0:00:03]}  Kf7 {[%clk 0:00:14]} 60. Kg3 {[%clk 0:00:03]}  Rf3+ {[%clk 0:00:14]} 61. Kg2 {[%clk 0:00:03]}  Rf4 {[%clk 0:00:15]} 62. Kg3 {[%clk 0:00:02]}  Rf3+ {[%clk 0:00:15]} 63. Kg2 {[%clk 0:00:02]}  Rf4 {[%clk 0:00:16]} 1/2-1/2


[Site "https://www.chess.com"]

[Event "Titled Tuesday Blitz June 21 Late 2022"]
[White "Zlatin, Alexander"]
[Black "Mickiewicz, Piotr"]
[WhiteFideId "2810549"]
[BlackFideId "1114891"]
[WhiteElo "2228"]
[BlackElo "2209"]
[Result "0-1"]
[Round "10"]
[TimeControl "180+1"]
[Date "2022.06.21"]
[WhiteClock "0:00:01"]
[BlackClock "0:00:11"]

1. d4 {[%clk 0:03:00]}  Nf6 {[%clk 0:02:51]} 2. Nc3 {[%clk 0:03:01]}  d5 {[%clk 0:02:41]} 3. Bf4 {[%clk 0:03:01]}  a6 {[%clk 0:02:39]} 4. e3 {[%clk 0:03:00]}  c5 {[%clk 0:02:37]} 5. dxc5 {[%clk 0:03:01]}  Nc6 {[%clk 0:02:37]} 6. Nf3 {[%clk 0:03:02]}  Bg4 {[%clk 0:02:36]} 7. Na4 {[%clk 0:02:58]}  e5 {[%clk 0:02:34]} 8. Bg5 {[%clk 0:02:20]}  e4 {[%clk 0:02:34]} 9. h3 {[%clk 0:02:20]}  Bd7 {[%clk 0:02:04]} 10. Nd2 {[%clk 0:02:08]}  Be6 {[%clk 0:01:17]} 11. Nb3 {[%clk 0:02:03]}  Be7 {[%clk 0:01:11]} 12. Be2 {[%clk 0:02:00]}  Nd7 {[%clk 0:01:10]} 13. Bxe7 {[%clk 0:01:54]}  Qxe7 {[%clk 0:01:10]} 14. O-O {[%clk 0:01:42]}  O-O {[%clk 0:01:09]} 15. Qd2 {[%clk 0:01:40]}  f5 {[%clk 0:01:04]} 16. Rfd1 {[%clk 0:01:38]}  Nde5 {[%clk 0:01:00]} 17. Nd4 {[%clk 0:01:34]}  Rad8 {[%clk 0:01:00]} 18. Nxe6 {[%clk 0:01:30]}  Qxe6 {[%clk 0:00:59]} 19. Nb6 {[%clk 0:01:30]}  d4 {[%clk 0:00:55]} 20. exd4 {[%clk 0:01:28]}  Nxd4 {[%clk 0:00:54]} 21. Qxd4 {[%clk 0:01:11]}  Rxd4 {[%clk 0:00:53]} 22. Rxd4 {[%clk 0:01:12]}  Qc6 {[%clk 0:00:41]} 23. b4 {[%clk 0:01:12]}  f4 {[%clk 0:00:39]} 24. Rd6 {[%clk 0:01:11]}  Qe8 {[%clk 0:00:34]} 25. Nc4 {[%clk 0:00:35]}  f3 {[%clk 0:00:33]} 26. Nxe5 {[%clk 0:00:35]}  Qxe5 {[%clk 0:00:33]} 27. Bc4+ {[%clk 0:00:27]}  Kh8 {[%clk 0:00:33]} 28. Rad1 {[%clk 0:00:25]}  fxg2 {[%clk 0:00:24]} 29. Rd8 {[%clk 0:00:21]}  Qf6 {[%clk 0:00:20]} 30. Rxf8+ {[%clk 0:00:19]}  Qxf8 {[%clk 0:00:20]} 31. Be2 {[%clk 0:00:10]}  g6 {[%clk 0:00:16]} 32. Kxg2 {[%clk 0:00:10]}  Qe7 {[%clk 0:00:16]} 33. a4 {[%clk 0:00:09]}  Kg7 {[%clk 0:00:14]} 34. c4 {[%clk 0:00:09]}  Kh6 {[%clk 0:00:14]} 35. Bg4 {[%clk 0:00:09]}  Qf6 {[%clk 0:00:14]} 36. b5 {[%clk 0:00:08]}  Qc3 {[%clk 0:00:13]} 37. c6 {[%clk 0:00:05]}  bxc6 {[%clk 0:00:12]} 38. bxc6 {[%clk 0:00:03]}  Qxc4 {[%clk 0:00:12]} 39. Bd7 {[%clk 0:00:03]}  e3 {[%clk 0:00:12]} 40. Re1 {[%clk 0:00:01]}  Qe4+ {[%clk 0:00:12]} 41. Kf1 {[%clk 0:00:01]}  Qd3+ {[%clk 0:00:11]} 0-1


[Site "https://www.chess.com"]

[Event "Titled Tuesday Blitz June 21 Late 2022"]
[White "Al-Tarboush, Ward"]
[Black "Peatman, Carter"]
[WhiteFideId "7601450"]
[BlackFideId "2096480"]
[WhiteElo "2249"]
[BlackElo "2483"]
[Result "1-0"]
[Round "11"]
[TimeControl "180+1"]
[Date "2022.06.21"]
[WhiteClock "0:01:07"]
[BlackClock "0:00:04"]

1. e4 {[%clk 0:03:00]}  e5 {[%clk 0:02:57]} 2. Nf3 {[%clk 0:03:00]}  Nf6 {[%clk 0:02:55]} 3. Nxe5 {[%clk 0:02:59]}  d6 {[%clk 0:02:55]} 4. Nf3 {[%clk 0:02:59]}  Nxe4 {[%clk 0:02:55]} 5. d4 {[%clk 0:03:00]}  d5 {[%clk 0:02:53]} 6. Bd3 {[%clk 0:02:59]}  Nd6 {[%clk 0:02:52]} 7. O-O {[%clk 0:02:59]}  Be7 {[%clk 0:02:50]} 8. Re1 {[%clk 0:03:00]}  O-O {[%clk 0:02:45]} 9. Nbd2 {[%clk 0:02:59]}  Bf5 {[%clk 0:02:38]} 10. Nf1 {[%clk 0:02:57]}  Nd7 {[%clk 0:02:30]} 11. Ng3 {[%clk 0:02:57]}  Bxd3 {[%clk 0:02:25]} 12. Qxd3 {[%clk 0:02:58]}  Re8 {[%clk 0:02:22]} 13. Bf4 {[%clk 0:02:57]}  Nf6 {[%clk 0:02:19]} 14. Re2 {[%clk 0:02:51]}  Bf8 {[%clk 0:02:12]} 15. Rae1 {[%clk 0:02:49]}  Rxe2 {[%clk 0:02:10]} 16. Rxe2 {[%clk 0:02:50]}  Qd7 {[%clk 0:02:05]} 17. Ne5 {[%clk 0:02:50]}  Qa4 {[%clk 0:02:00]} 18. a3 {[%clk 0:02:44]}  Re8 {[%clk 0:01:49]} 19. h4 {[%clk 0:02:37]}  c5 {[%clk 0:01:31]} 20. c3 {[%clk 0:02:30]}  cxd4 {[%clk 0:01:24]} 21. cxd4 {[%clk 0:02:30]}  Nfe4 {[%clk 0:01:11]} 22. f3 {[%clk 0:02:22]}  Nxg3 {[%clk 0:01:06]} 23. Bxg3 {[%clk 0:02:23]}  f6 {[%clk 0:00:48]} 24. Ng4 {[%clk 0:02:06]}  Rxe2 {[%clk 0:00:48]} 25. Qxe2 {[%clk 0:02:06]}  Qxd4+ {[%clk 0:00:48]} 26. Bf2 {[%clk 0:02:05]}  Qc4 {[%clk 0:00:38]} 27. Qe6+ {[%clk 0:02:05]}  Nf7 {[%clk 0:00:37]} 28. h5 {[%clk 0:01:55]}  Qc1+ {[%clk 0:00:35]} 29. Kh2 {[%clk 0:01:54]}  Qxb2 {[%clk 0:00:29]} 30. h6 {[%clk 0:01:52]}  f5 {[%clk 0:00:16]} 31. hxg7 {[%clk 0:01:43]}  Bxg7 {[%clk 0:00:17]} 32. Qxf5 {[%clk 0:01:39]}  Be5+ {[%clk 0:00:12]} 33. Kh3 {[%clk 0:01:39]}  Bg7 {[%clk 0:00:07]} 34. Bh4 {[%clk 0:01:25]}  Qa1 {[%clk 0:00:07]} 35. Qc8+ {[%clk 0:01:22]}  Bf8 {[%clk 0:00:06]} 36. Nf6+ {[%clk 0:01:18]}  Kg7 {[%clk 0:00:06]} 37. Qg4+ {[%clk 0:01:08]}  Kh6 {[%clk 0:00:04]} 38. Ng8# {[%clk 0:01:07]} 1-0


[Site "https://www.chess.com"]

[Event "Titled Tuesday Blitz June 21 Late 2022"]
[White "Andreikin, Dmitry"]
[Black "Le, Tuan Minh"]
[WhiteFideId "4158814"]
[BlackFideId "12401153"]
[WhiteElo "2736"]
[BlackElo "2530"]
[Result "0-1"]
[Round "11"]
[TimeControl "180+1"]
[Date "2022.06.21"]
[WhiteClock "0:00:03"]
[BlackClock "0:00:08"]

1. d4 {[%clk 0:03:00]}  Nf6 {[%clk 0:02:54]} 2. c4 {[%clk 0:03:01]}  c5 {[%clk 0:02:54]} 3. Nf3 {[%clk 0:03:00]}  cxd4 {[%clk 0:02:45]} 4. Nxd4 {[%clk 0:03:00]}  Nc6 {[%clk 0:02:45]} 5. Nc3 {[%clk 0:03:00]}  g6 {[%clk 0:02:43]} 6. e4 {[%clk 0:03:00]}  Bg7 {[%clk 0:02:42]} 7. Be3 {[%clk 0:02:59]}  O-O {[%clk 0:02:43]} 8. Be2 {[%clk 0:02:58]}  d6 {[%clk 0:02:41]} 9. O-O {[%clk 0:02:58]}  Be6 {[%clk 0:02:40]} 10. Nxe6 {[%clk 0:02:56]}  fxe6 {[%clk 0:02:38]} 11. Qb3 {[%clk 0:02:47]}  Nd7 {[%clk 0:02:28]} 12. Rad1 {[%clk 0:02:35]}  b6 {[%clk 0:02:24]} 13. Bg4 {[%clk 0:02:29]}  Nc5 {[%clk 0:02:20]} 14. Qc2 {[%clk 0:02:23]}  e5 {[%clk 0:02:18]} 15. Nd5 {[%clk 0:02:16]}  Nd4 {[%clk 0:02:15]} 16. Bxd4 {[%clk 0:02:12]}  exd4 {[%clk 0:02:16]} 17. b4 {[%clk 0:02:12]}  d3 {[%clk 0:02:01]} 18. Qb1 {[%clk 0:02:10]}  Nxe4 {[%clk 0:02:02]} 19. Qxd3 {[%clk 0:02:08]}  Nf6 {[%clk 0:02:02]} 20. Be6+ {[%clk 0:02:04]}  Kh8 {[%clk 0:02:02]} 21. g3 {[%clk 0:01:57]}  a5 {[%clk 0:01:48]} 22. b5 {[%clk 0:01:57]}  Ra7 {[%clk 0:01:40]} 23. Rc1 {[%clk 0:01:40]}  a4 {[%clk 0:01:05]} 24. Qe3 {[%clk 0:01:40]}  Rb7 {[%clk 0:00:55]} 25. Rfe1 {[%clk 0:01:39]}  Nxd5 {[%clk 0:00:49]} 26. cxd5 {[%clk 0:01:34]}  Qa8 {[%clk 0:00:50]} 27. Rc6 {[%clk 0:01:01]}  Qa5 {[%clk 0:00:48]} 28. Rb1 {[%clk 0:01:00]}  Bf6 {[%clk 0:00:33]} 29. Qh6 {[%clk 0:00:53]}  Bg7 {[%clk 0:00:33]} 30. Qe3 {[%clk 0:00:44]}  Bf6 {[%clk 0:00:34]} 31. Kg2 {[%clk 0:00:42]}  Kg7 {[%clk 0:00:33]} 32. h4 {[%clk 0:00:43]}  h5 {[%clk 0:00:33]} 33. a3 {[%clk 0:00:32]}  Be5 {[%clk 0:00:26]} 34. Qd3 {[%clk 0:00:27]}  Bf6 {[%clk 0:00:12]} 35. Rbc1 {[%clk 0:00:26]}  Ra7 {[%clk 0:00:13]} 36. Qe3 {[%clk 0:00:18]}  Qxb5 {[%clk 0:00:11]} 37. Rxb6 {[%clk 0:00:19]}  Qa5 {[%clk 0:00:11]} 38. Rc2 {[%clk 0:00:17]}  Raa8 {[%clk 0:00:10]} 39. Rbc6 {[%clk 0:00:17]}  Rab8 {[%clk 0:00:10]} 40. Rc7 {[%clk 0:00:17]}  Rb3 {[%clk 0:00:10]} 41. Qe4 {[%clk 0:00:15]}  Rxa3 {[%clk 0:00:10]} 42. Bh3 {[%clk 0:00:16]}  Rf7 {[%clk 0:00:08]} 43. Bd7 {[%clk 0:00:15]}  Rf8 {[%clk 0:00:09]} 44. Bh3 {[%clk 0:00:11]}  Rb3 {[%clk 0:00:07]} 45. Rc8 {[%clk 0:00:08]}  Rb8 {[%clk 0:00:05]} 46. Rxf8 {[%clk 0:00:07]}  Rxf8 {[%clk 0:00:06]} 47. Rc4 {[%clk 0:00:06]}  a3 {[%clk 0:00:06]} 48. Ra4 {[%clk 0:00:07]}  Qc3 {[%clk 0:00:07]} 49. Ra7 {[%clk 0:00:05]}  Qb2 {[%clk 0:00:06]} 50. Qc4 {[%clk 0:00:03]}  Bd4 {[%clk 0:00:05]} 51. Rxe7+ {[%clk 0:00:02]}  Kh6 {[%clk 0:00:06]} 52. Re2 {[%clk 0:00:02]}  Rxf2+ {[%clk 0:00:06]} 53. Rxf2 {[%clk 0:00:02]}  Qxf2+ {[%clk 0:00:07]} 54. Kh1 {[%clk 0:00:03]}  Qg1# {[%clk 0:00:08]} 0-1


[Site "https://www.chess.com"]